bitfinex/quotes_BTCUSD_20250115
["timestamp","ask_amount","ask_price","bid_price","bid_amount"]
[1736901027914,2e-07,97364.0,97363.0,1.27099692]
[1736901028047,2e-07,97364.0,97363.0,1.27999692]
[1736901028454,2e-07,97364.0,97363.0,1.27099692]
[1736901028860,2e-07,97364.0,97363.0,1.27999692]
[1736901029266,2e-07,97364.0,97363.0,1.28899692]
[1736901029699,0.0008546,97399.0,97374.0,0.649393]
[1736901029919,0.00100251,97375.0,97374.0,1.265803]
[1736901031128,0.00100251,97375.0,97374.0,1.183803]
[1736901031129,0.00200251,97375.0,97374.0,1.183803]
[1736901032129,0.00200251,97375.0,97374.0,1.28802992]
[1736901032376,5.1e-07,97375.0,97374.0,1.48802992]
[1736901032937,2.1e-07,97377.0,97376.0,0.544]
[1736901033142,2.1e-07,97377.0,97376.0,1.26462692]
[1736901033542,2.1e-07,97377.0,97376.0,1.16462692]
[1736901033833,2.1e-07,97377.0,97376.0,1.17094692]
[1736901034056,2.1e-07,97377.0,97376.0,1.17994692]
[1736901034234,0.00096021,97377.0,97376.0,1.18894692]
[1736901034704,0.0008546,97399.0,97397.0,0.305345]
[1736901034915,0.0008546,97399.0,97397.0,0.921685]
[1736901035685,0.0008546,97399.0,97397.0,1.015685]
[1736901036007,0.10508152,97398.0,97397.0,0.71634]
[1736901036215,0.10508152,97398.0,97397.0,0.72534]
[1736901036453,0.10508152,97398.0,97397.0,0.71634]
[1736901036948,0.10508152,97398.0,97397.0,0.72534]
[1736901037144,0.10508152,97398.0,97397.0,0.71634]
[1736901037291,0.10508152,97398.0,97397.0,0.72234]
[1736901037700,0.10508152,97398.0,97397.0,0.71634]
[1736901037902,0.10508152,97398.0,97397.0,0.61634]
[1736901038105,0.22788152,97398.0,97397.0,0.62034]
[1736901038353,0.1236546,97398.0,97397.0,0.72134]
[1736901038738,0.1236546,97398.0,97397.0,0.72034]
[1736901039329,0.0008546,97398.0,97397.0,0.72034]
[1736901040438,0.0008546,97398.0,97397.0,0.72334]
[1736901040810,0.0008546,97398.0,97397.0,0.72034]
[1736901041015,0.0008546,97398.0,97397.0,0.72434]
[1736901042186,0.0008546,97398.0,97397.0,0.72034]
[1736901042393,0.0008546,97398.0,97397.0,0.71634]
[1736901042592,0.0008546,97398.0,97397.0,0.71734]
[1736901043516,0.0008546,97398.0,97397.0,0.71634]
[1736901043706,0.0008546,97398.0,97397.0,0.72234]
[1736901044168,0.0008546,97398.0,97397.0,1.018685]
[1736901044394,0.0008546,97398.0,97397.0,1.015685]
[1736901044608,0.0008546,97398.0,97397.0,1.018685]
[1736901045262,0.0008546,97398.0,97397.0,1.015685]
[1736901045518,0.0008546,97398.0,97397.0,1.018685]
[1736901045744,0.0008546,97398.0,97397.0,1.019685]
[1736901045952,0.0008546,97398.0,97397.0,1.018685]
[1736901046174,0.0008546,97398.0,97397.0,1.025685]
[1736901046377,0.0008546,97398.0,97397.0,1.018685]
[1736901046814,0.0018546,97398.0,97397.0,1.027685]
[1736901047015,0.0008546,97398.0,97397.0,1.018685]
[1736901047242,0.0008546,97398.0,97397.0,1.015685]
[1736901047497,0.0008546,97398.0,97397.0,1.022685]
[1736901047712,0.0008546,97398.0,97397.0,1.027685]
[1736901048139,0.0008546,97398.0,97397.0,1.022685]
[1736901048563,0.0008546,97398.0,97397.0,1.021685]
[1736901049423,0.0008546,97398.0,97397.0,1.029685]
[1736901049839,0.0008546,97398.0,97397.0,1.021685]
[1736901050040,0.0008546,97398.0,97397.0,1.027685]
[1736901050484,0.0008546,97398.0,97397.0,1.015685]
[1736901050921,0.0008546,97398.0,97397.0,1.020685]
[1736901051485,0.0008546,97398.0,97397.0,1.015685]
[1736901051737,0.0008546,97398.0,97397.0,1.024685]
[1736901051925,0.0008546,97398.0,97397.0,1.021685]
[1736901052333,0.0008546,97398.0,97397.0,1.024685]
[1736901052530,0.0008546,97398.0,97397.0,1.015685]
[1736901052938,0.0008546,97398.0,97397.0,1.12891192]
[1736901053111,0.47352935,97400.0,97397.0,1.32525692]
[1736901053327,0.47352935,97400.0,97399.0,0.20534]
[1736901053696,0.47352935,97400.0,97399.0,1.01567]
[1736901054235,0.39139335,97400.0,97399.0,1.46989692]
[1736901054429,0.37085935,97400.0,97399.0,1.47689692]
[1736901054830,0.32979135,97400.0,97399.0,1.49289692]
[1736901055035,0.26818935,97400.0,97399.0,1.49289692]
[1736901055235,0.26818935,97400.0,97399.0,1.49989692]
[1736901055511,0.26818935,97400.0,97399.0,1.52003809]
[1736901055880,0.22712135,97400.0,97399.0,1.52003809]
[1736901056074,0.18605335,97400.0,97399.0,1.52003809]
[1736901056296,0.16551935,97400.0,97399.0,1.52903809]
[1736901056473,0.16551935,97400.0,97399.0,1.52003809]
[1736901056677,0.16551935,97400.0,97399.0,1.51303809]
[1736901056919,0.16551935,97400.0,97399.0,1.53003809]
[1736901057122,0.12445135,97400.0,97399.0,1.52103809]
[1736901057326,0.10391735,97400.0,97399.0,1.52103809]
[1736901057571,0.10391735,97400.0,97399.0,1.51303809]
[1736901057756,0.10391735,97400.0,97399.0,1.52203809]
[1736901058170,0.02178235,97400.0,97399.0,1.52203809]
[1736901058580,0.02178235,97400.0,97399.0,1.53103809]
[1736901058782,0.02178235,97400.0,97399.0,1.50547809]
[1736901058982,0.02178235,97400.0,97399.0,1.51447809]
[1736901059851,0.02178235,97400.0,97399.0,1.51947809]
[1736901060072,0.01678235,97400.0,97399.0,1.53747809]
[1736901060667,0.12493,97404.0,97401.0,0.544]
[1736901060865,0.030575,97444.0,97443.0,0.522248]
[1736901061042,0.030575,97444.0,97443.0,1.24266492]
[1736901061250,0.030575,97444.0,97443.0,1.22610492]
[1736901061449,1e-06,97444.0,97443.0,1.03210492]
[1736901061819,1e-06,97444.0,97443.0,1.32610492]
[1736901062014,1e-06,97444.0,97443.0,1.49910492]
[1736901062214,1e-06,97444.0,97443.0,1.50981146]
[1736901062591,1e-06,97444.0,97443.0,1.50337146]
[1736901062799,1e-06,97444.0,97443.0,1.51881146]
[1736901063001,0.60204,97450.0,97449.0,0.544]
[1736901063202,0.60204,97450.0,97449.0,1.26439692]
[1736901063533,0.60204,97450.0,97449.0,1.28739692]
[1736901063744,0.60204,97450.0,97449.0,2.78739692]
[1736901063886,0.60204,97450.0,97449.0,2.99263192]
[1736901064338,0.60204,97450.0,97449.0,1.26963192]
[1736901064496,0.60204,97450.0,97449.0,1.015405]
[1736901064702,0.60204,97450.0,97449.0,1.12863192]
[1736901065506,0.60204,97450.0,97449.0,1.04363192]
[1736901065801,0.60204,97450.0,97449.0,1.033405]
[1736901065994,0.60204,97450.0,97449.0,1.015405]
[1736901066189,0.60204,97450.0,97449.0,1.024405]
[1736901066325,0.60204,97450.0,97449.0,1.12340521]
[1736901066530,0.60204,97450.0,97449.0,1.11440521]
[1736901066950,0.60204,97450.0,97449.0,1.12340521]
[1736901067159,0.60204,97450.0,97449.0,0.82817]
[1736901067577,0.60204,97450.0,97449.0,0.81917]
[1736901067946,0.60204,97450.0,97449.0,0.82617]
[1736901068123,0.60204,97450.0,97449.0,0.81717]
[1736901068355,0.60204,97450.0,97449.0,0.82617]
[1736901068873,0.60204,97450.0,97449.0,0.99674476]
[1736901069076,0.60204,97450.0,97449.0,1.00474476]
[1736901069389,0.60204,97450.0,97449.0,0.81017]
[1736901069604,0.6028929,97450.0,97449.0,0.82317]
[1736901069798,0.6028929,97450.0,97449.0,0.72317]
[1736901070015,0.6028929,97450.0,97449.0,0.71717]
[1736901070184,0.6028929,97450.0,97449.0,0.72317]
[1736901070399,0.6028929,97450.0,97449.0,0.81617]
[1736901070860,0.6028929,97450.0,97449.0,0.71017]
[1736901071012,0.6028929,97450.0,97449.0,0.80581655]
[1736901071214,0.6028929,97450.0,97449.0,0.81181655]
[1736901071425,0.8570259,97450.0,97449.0,0.81181655]
[1736901071630,0.6517929,97450.0,97449.0,0.81181655]
[1736901071832,0.6517929,97450.0,97449.0,0.81981655]
[1736901071833,0.9332259,97450.0,97449.0,0.81981655]
[1736901072046,0.9332259,97450.0,97449.0,0.72117]
[1736901072266,0.9332259,97450.0,97449.0,0.72817]
[1736901072467,0.9332259,97450.0,97449.0,0.72317]
[1736901072674,1.03745282,97450.0,97449.0,0.71617]
[1736901072895,1.03745282,97450.0,97449.0,0.62117]
[1736901073513,1.03745282,97450.0,97449.0,0.62017]
[1736901073713,1.03745282,97450.0,97449.0,0.62417]
[1736901074315,1.03745282,97450.0,97449.0,0.62017]
[1736901074762,1.03745282,97450.0,97449.0,0.61617]
[1736901076008,1.03745282,97450.0,97449.0,0.61817]
[1736901079883,1.03419278,97450.0,97449.0,0.61817]
[1736901085646,1.20719278,97450.0,97449.0,0.49007]
[1736901086309,1.20719278,97450.0,97449.0,0.48807]
[1736901086720,1.03419278,97450.0,97449.0,0.48807]
[1736901087741,1.03519278,97450.0,97449.0,0.48807]
[1736901087944,1.03419278,97450.0,97449.0,0.48807]
[1736901088377,1.03519278,97450.0,97449.0,0.48807]
[1736901089754,1.03519278,97450.0,97449.0,0.48907]
[1736901090491,1.05128942,97450.0,97449.0,0.48907]
[1736901091250,1.22428942,97450.0,97449.0,0.32015029]
[1736901091453,1.23028942,97450.0,97449.0,0.32015029]
[1736901092072,1.21419278,97450.0,97449.0,0.31915029]
[1736901092268,1.21319278,97450.0,97449.0,0.32015029]
[1736901092503,1.21419278,97450.0,97449.0,0.32015029]
[1736901092707,1.21419278,97450.0,97449.0,0.31915029]
[1736901092912,1.21319278,97450.0,97449.0,0.31915029]
[1736901093551,1.21319278,97450.0,97406.0,0.1]
[1736901093552,0.006,97432.0,97406.0,0.1]
[1736901093756,0.205319,97409.0,97401.0,0.10049463]
[1736901093961,0.30954792,97408.0,97406.0,0.30795]
[1736901094200,0.38772189,97430.0,97406.0,0.30795]
[1736901094201,0.0754,97440.0,97414.0,0.094]
[1736901094439,0.20528,97428.0,97414.0,0.613269]
[1736901094688,0.10422692,97427.0,97426.0,0.1]
[1736901094904,0.10422692,97427.0,97426.0,0.40793]
[1736901096088,0.10522692,97427.0,97426.0,0.40793]
[1736901096345,0.10522692,97427.0,97426.0,0.40993]
[1736901100783,0.001,97427.0,97426.0,0.40993]
[1736901101321,0.001,97427.0,97426.0,0.50393]
[1736901101516,0.001,97427.0,97426.0,0.50193]
[1736901101721,0.01609939,97431.0,97430.0,0.194]
[1736901101882,0.01609939,97431.0,97430.0,0.55023616]
[1736901102086,0.59963286,97450.0,97449.0,0.399235]
[1736901102336,0.59963286,97450.0,97449.0,0.707085]
[1736901102743,0.59963286,97450.0,97449.0,0.88991192]
[1736901102993,0.59963286,97450.0,97449.0,1.03721192]
[1736901103167,0.54963286,97450.0,97449.0,1.06021192]
[1736901103400,0.54963286,97450.0,97449.0,1.06070655]
[1736901103922,0.54963286,97450.0,97449.0,1.03770655]
[1736901104188,0.54963286,97450.0,97449.0,0.93770655]
[1736901104589,0.54963286,97450.0,97449.0,0.84470655]
[1736901104792,0.54963286,97450.0,97449.0,0.93770655]
[1736901104946,0.54963286,97450.0,97449.0,0.94270655]
[1736901105152,0.54963286,97450.0,97449.0,0.84747963]
[1736901105348,0.54963286,97450.0,97449.0,0.83527051]
[1736901105556,0.54963286,97450.0,97449.0,0.59173551]
[1736901105756,0.54963286,97450.0,97449.0,0.52213551]
[1736901105981,0.54963286,97450.0,97449.0,0.51313551]
[1736901106180,0.54963286,97450.0,97449.0,0.42813551]
[1736901106416,0.54963286,97450.0,97449.0,0.51313551]
[1736901107052,0.54963286,97450.0,97449.0,0.41913551]
[1736901107261,0.54963286,97450.0,97449.0,0.51313551]
[1736901107467,0.54963286,97450.0,97449.0,0.41913551]
[1736901107663,0.54963286,97450.0,97449.0,0.31713551]
[1736901107864,0.65385978,97450.0,97449.0,0.31713551]
[1736901108062,0.65385978,97450.0,97449.0,0.41613551]
[1736901108523,0.65385978,97450.0,97449.0,0.41313551]
[1736901108839,0.65385978,97450.0,97449.0,0.41513551]
[1736901109046,0.65385978,97450.0,97449.0,0.31013551]
[1736901109247,0.65385978,97450.0,97449.0,0.31213551]
[1736901109581,0.65585978,97450.0,97449.0,0.31213551]
[1736901110752,0.65385978,97450.0,97449.0,0.31213551]
[1736901111249,0.65585978,97450.0,97449.0,0.31013551]
[1736901111440,0.65585978,97450.0,97449.0,0.31213551]
[1736901121457,0.55163286,97450.0,97449.0,0.50613551]
[1736901122485,0.55163286,97450.0,97449.0,0.50413551]
[1736901122883,0.86109278,97450.0,97449.0,0.31013551]
[1736901123095,0.87134498,97450.0,97449.0,0.31013551]
[1736901123312,1.09344498,97450.0,97449.0,0.31013551]
[1736901123525,1.09744498,97450.0,97449.0,0.31013551]
[1736901123745,2.04334598,97450.0,97449.0,0.31013551]
[1736901123952,2.04534598,97450.0,97449.0,0.31113551]
[1736901124149,2.04334598,97450.0,97449.0,0.31113551]
[1736901124359,2.1475729,97450.0,97449.0,0.31013551]
[1736901124562,2.1495729,97450.0,97449.0,0.20751551]
[1736901124784,2.2227729,97450.0,97449.0,0.20751551]
[1736901125008,2.2227729,97450.0,97416.0,0.1]
[1736901125009,0.2053,97418.0,97416.0,0.1]
[1736901125203,0.10422692,97417.0,97406.0,0.10049466]
[1736901125420,0.12722692,97416.0,97406.0,0.00049466]
[1736901125627,0.173,97408.0,97406.0,0.30846466]
[1736901125832,0.33255092,97407.0,97406.0,0.30846466]
[1736901127519,0.33755092,97407.0,97406.0,0.30846466]
[1736901127952,0.33755092,97407.0,97406.0,0.31025554]
[1736901129890,0.3478309,97407.0,97406.0,0.31025554]
[1736901132201,0.33755092,97407.0,97406.0,0.31025554]
[1736901133069,0.33255092,97407.0,97406.0,0.31025554]
[1736901133386,0.33655092,97407.0,97406.0,0.31025554]
[1736901133619,0.33255092,97407.0,97406.0,0.31025554]
[1736901134067,0.33655092,97407.0,97406.0,0.31025554]
[1736901134525,0.10822692,97407.0,97406.0,0.41025554]
[1736901135381,0.13122692,97407.0,97406.0,0.41025554]
[1736901136351,0.12722692,97407.0,97406.0,0.41025554]
[1736901136746,0.13122692,97407.0,97406.0,0.41025554]
[1736901136905,0.12722692,97407.0,97406.0,0.41025554]
[1736901137107,0.12922692,97407.0,97406.0,0.41225554]
[1736901137739,0.12922692,97407.0,97406.0,0.31025554]
[1736901137994,0.12722692,97407.0,97406.0,0.31025554]
[1736901138371,0.13222692,97407.0,97406.0,0.31025554]
[1736901138742,0.13222692,97407.0,97406.0,0.31125554]
[1736901139471,0.12722692,97407.0,97406.0,0.31125554]
[1736901139914,0.13775548,97407.0,97406.0,0.31125554]
[1736901140101,0.42485548,97407.0,97406.0,0.31125554]
[1736901140317,1.20065048,97407.0,97406.0,0.31125554]
[1736901140503,2.75928748,97407.0,97406.0,0.31125554]
[1736901140853,2.78585548,97407.0,97406.0,0.31025554]
[1736901141032,2.8940824,97407.0,97406.0,0.31025554]
[1736901141235,2.8900824,97407.0,97406.0,0.31025554]
[1736901141444,2.8577574,97407.0,97406.0,0.31025554]
[1736901141665,2.3798854,97407.0,97406.0,0.31125554]
[1736901142233,2.39599195,97407.0,97406.0,0.31125554]
[1736901142429,2.21717395,97407.0,97406.0,0.31125554]
[1736901142799,1.65632203,97407.0,97406.0,0.31125554]
[1736901143003,1.66256203,97407.0,97406.0,0.31125554]
[1736901146045,1.66256203,97407.0,97374.0,0.10179235]
[1736901146046,0.205385,97378.0,97374.0,0.00179235]
[1736901146296,0.49485192,97378.0,97377.0,0.00228767]
[1736901146519,0.49485192,97378.0,97377.0,0.31036767]
[1736901146736,0.48885192,97378.0,97377.0,0.31036767]
[1736901147380,0.49185192,97378.0,97377.0,0.31036767]
[1736901147619,0.50237637,97378.0,97377.0,0.31036767]
[1736901147837,0.35137637,97378.0,97377.0,0.31036767]
[1736901148074,0.35037637,97378.0,97377.0,0.31036767]
[1736901148287,0.34413637,97378.0,97377.0,0.31036767]
[1736901148503,0.35313637,97378.0,97377.0,0.31136767]
[1736901149541,0.35213637,97378.0,97377.0,0.31136767]
[1736901149754,0.34313637,97378.0,97377.0,0.31036767]
[1736901150178,0.35013637,97378.0,97377.0,0.31136767]
[1736901150400,0.10422692,97378.0,97377.0,0.41036767]
[1736901150643,0.13207231,97390.0,97387.0,0.1]
[1736901150892,0.01051517,97390.0,97387.0,0.079684]
[1736901151742,0.205362,97389.0,97387.0,0.079684]
[1736901152172,0.25422692,97388.0,97387.0,0.079684]
[1736901152325,0.34082692,97388.0,97387.0,0.079684]
[1736901152947,0.36382692,97388.0,97387.0,0.080684]
[1736901153134,0.63170292,97388.0,97387.0,0.080684]
[1736901153599,0.63170292,97388.0,97387.0,0.079684]
[1736901153766,0.64070292,97388.0,97387.0,0.080684]
[1736901153971,0.7610386,97388.0,97387.0,0.080684]
[1736901154313,0.77379769,97388.0,97387.0,0.079684]
[1736901154518,0.78279769,97388.0,97387.0,0.080684]
[1736901154932,0.51392169,97388.0,97387.0,0.080684]
[1736901155159,0.55436577,97388.0,97387.0,0.080684]
[1736901156190,0.54836577,97388.0,97387.0,0.079684]
[1736901156416,0.55736577,97388.0,97387.0,0.079684]
[1736901156625,0.54836577,97388.0,97387.0,0.079684]
[1736901156800,0.64959269,97388.0,97387.0,0.079684]
[1736901157030,0.66159269,97388.0,97387.0,0.079684]
[1736901157247,0.27333568,97388.0,97387.0,0.079684]
[1736901157454,0.25722692,97388.0,97387.0,0.079684]
[1736901157662,0.26322692,97388.0,97387.0,0.079684]
[1736901157840,0.28922692,97388.0,97387.0,0.079684]
[1736901157982,0.13922692,97388.0,97387.0,0.079684]
[1736901159080,0.003,97388.0,97387.0,0.255884]
[1736901159290,0.205307,97416.0,97402.0,0.1]
[1736901159490,0.10422692,97412.0,97411.0,0.1]
[1736901159712,0.10422692,97412.0,97411.0,0.63634]
[1736901159864,0.30954192,97412.0,97411.0,0.53634]
[1736901160560,0.33254192,97412.0,97411.0,0.53634]
[1736901160768,0.34864521,97412.0,97411.0,0.53634]
[1736901160965,0.34864521,97412.0,97411.0,0.53683532]
[1736901161395,0.49864521,97412.0,97411.0,0.53683532]
[1736901162030,0.57587973,97412.0,97411.0,0.53683532]
[1736901162233,0.50464521,97412.0,97411.0,0.53683532]
[1736901162432,0.48854192,97412.0,97411.0,0.53683532]
[1736901162870,0.49254192,97412.0,97411.0,0.53683532]
[1736901163074,0.48854192,97412.0,97411.0,0.53683532]
[1736901163288,0.49454192,97412.0,97411.0,0.53683532]
[1736901163692,0.48854192,97412.0,97411.0,0.53683532]
[1736901163908,0.49954192,97412.0,97411.0,0.53683532]
[1736901164310,0.48854192,97412.0,97411.0,0.53683532]
[1736901165631,0.51564638,97412.0,97411.0,0.53683532]
[1736901165829,0.49054192,97412.0,97411.0,0.53683532]
[1736901166154,0.51829613,97412.0,97411.0,0.53683532]
[1736901166528,0.52029613,97412.0,97411.0,0.53683532]
[1736901167314,0.50929613,97412.0,97411.0,0.53683532]
[1736901168754,0.51129613,97412.0,97411.0,0.53683532]
[1736901169132,0.52740062,97412.0,97411.0,0.53683532]
[1736901169335,0.51129613,97412.0,97411.0,0.53683532]
[1736901169554,0.49874192,97412.0,97411.0,0.53683532]
[1736901169748,0.34254192,97412.0,97411.0,0.53683532]
[1736901170023,0.49874192,97412.0,97411.0,0.53683532]
[1736901170463,0.48874192,97412.0,97411.0,0.53683532]
[1736901170682,0.49574192,97412.0,97411.0,0.53683532]
[1736901171319,0.48974192,97412.0,97411.0,0.53683532]
[1736901171610,0.49574192,97412.0,97411.0,0.53683532]
[1736901171785,0.49574192,97412.0,97411.0,0.53693532]
[1736901171946,0.49474192,97412.0,97411.0,0.53693532]
[1736901172394,0.82931892,97412.0,97411.0,0.53693532]
[1736901172703,0.82531892,97412.0,97411.0,0.53693532]
[1736901172913,0.93554584,97412.0,97411.0,0.53693532]
[1736901173107,0.93054584,97412.0,97411.0,0.53693532]
[1736901173468,0.95365127,97412.0,97411.0,0.53693532]
[1736901173673,0.94565127,97412.0,97411.0,0.53693532]
[1736901173902,0.94765127,97412.0,97411.0,0.53693532]
[1736901174104,0.95665127,97412.0,97411.0,0.53693532]
[1736901175139,1.09290903,97412.0,97411.0,0.51640332]
[1736901175336,1.14270903,97412.0,97411.0,0.51140726]
[1736901175561,1.14470903,97412.0,97411.0,0.51140726]
[1736901175777,1.14470903,97412.0,97411.0,0.41618516]
[1736901175983,1.19076788,97412.0,97411.0,0.41618516]
[1736901176462,0.99545127,97412.0,97411.0,0.41618516]
[1736901176662,1.00845127,97412.0,97411.0,0.30452516]
[1736901176999,0.99545127,97412.0,97411.0,0.26346116]
[1736901177225,0.98834584,97412.0,97411.0,0.26346116]
[1736901177651,0.98919964,97412.0,97411.0,0.26346116]
[1736901178095,0.98919964,97412.0,97411.0,0.27346116]
[1736901178529,0.98019964,97412.0,97411.0,0.27346116]
[1736901178818,0.99319964,97412.0,97411.0,0.27346116]
[1736901179038,0.98919964,97412.0,97411.0,0.27346116]
[1736901179367,0.99319964,97412.0,97411.0,0.27346116]
[1736901179907,0.66262264,97412.0,97411.0,0.27346116]
[1736901180105,1.75605464,97412.0,97411.0,0.27346116]
[1736901180336,1.75605464,97412.0,97411.0,0.19133316]
[1736901180531,1.77216148,97412.0,97411.0,0.17080116]
[1736901180696,1.77216148,97412.0,97411.0,0.12709283]
[1736901180890,1.77216148,97412.0,97377.0,0.00179235]
[1736901180891,0.006,97390.0,97377.0,0.00179235]
[1736901181130,0.173,97411.0,97386.0,0.00228882]
[1736901181131,0.48859292,97387.0,97386.0,0.00228882]
[1736901181332,1.07125692,97387.0,97386.0,0.31033882]
[1736901181623,1.34354792,97387.0,97386.0,0.31033882]
[1736901182456,1.26033692,97387.0,97386.0,0.31033882]
[1736901182603,0.355385,97378.0,97377.0,0.00179235]
[1736901182811,0.48261192,97378.0,97377.0,0.00228826]
[1736901183025,0.48261192,97378.0,97377.0,0.31036826]
[1736901183220,0.55201121,97378.0,97377.0,0.31036826]
[1736901183586,0.55801121,97378.0,97377.0,0.31036826]
[1736901183995,0.48961192,97378.0,97377.0,0.31036826]
[1736901184674,0.49987641,97378.0,97377.0,0.31036826]
[1736901185331,0.50787641,97378.0,97377.0,0.31036826]
[1736901185733,0.49887641,97378.0,97377.0,0.31136826]
[1736901185915,0.50687641,97378.0,97377.0,0.31136826]
[1736901186232,0.50687641,97378.0,97377.0,0.14458326]
[1736901186233,0.94413064,97378.0,97377.0,0.14458326]
[1736901186441,0.96963258,97378.0,97377.0,0.04180126]
[1736901186674,1.05263258,97378.0,97377.0,0.00069418]
[1736901187108,0.006,97375.0,97374.0,5.3e-07]
[1736901187245,0.38745384,97375.0,97374.0,0.30809053]
[1736901187670,0.38745384,97375.0,97374.0,0.24647353]
[1736901187875,0.38745384,97375.0,97374.0,0.18485653]
[1736901188070,0.38745384,97375.0,97374.0,0.12323953]
[1736901188690,2.70036184,97375.0,97374.0,0.12323953]
[1736901188889,2.53286684,97375.0,97374.0,0.12323953]
[1736901189296,2.53286684,97375.0,97374.0,0.02054453]
[1736901189493,2.53286684,97375.0,97374.0,0.01580453]
[1736901189694,0.36144,97352.0,97345.0,0.00179025]
[1736901189990,0.57201732,97352.0,97351.0,0.30995004]
[1736901190192,1.89523132,97352.0,97351.0,0.22652236]
[1736901190507,1.89523132,97352.0,97351.0,0.19380536]
[1736901190508,1.91134553,97352.0,97351.0,0.19380536]
[1736901190919,1.91134553,97352.0,97351.0,0.11054969]
[1736901191256,1.91134553,97352.0,97307.0,0.1]
[1736901191257,0.006,97329.0,97307.0,0.1]
[1736901191452,0.45975692,97309.0,97308.0,0.31006004]
[1736901191675,0.48887692,97309.0,97308.0,0.31006004]
[1736901192318,1.26737892,97309.0,97308.0,0.26843842]
[1736901192521,0.48875692,97309.0,97308.0,0.23843842]
[1736901192694,0.62536118,97309.0,97308.0,0.23843842]
[1736901192894,0.64619542,97309.0,97308.0,0.23843842]
[1736901193156,0.52642242,97309.0,97308.0,0.23943842]
[1736901193363,0.52030242,97309.0,97308.0,0.23943842]
[1736901193566,0.62116931,97309.0,97308.0,0.23843842]
[1736901193772,0.52642242,97309.0,97308.0,0.23843842]
[1736901193961,0.50658818,97309.0,97308.0,0.23843842]
[1736901194093,0.51358818,97309.0,97308.0,0.23843842]
[1736901194308,0.60066365,97309.0,97308.0,0.23843842]
[1736901194727,1.02503865,97309.0,97308.0,0.23843842]
[1736901194942,0.76184465,97309.0,97308.0,0.23843842]
[1736901195170,0.74784465,97309.0,97308.0,0.23843842]
[1736901195371,0.74784465,97309.0,97308.0,0.238255]
[1736901195372,0.50858818,97309.0,97308.0,0.238255]
[1736901195845,0.50958818,97309.0,97308.0,0.238255]
[1736901196065,0.50058818,97309.0,97308.0,0.238255]
[1736901196389,0.49958818,97309.0,97308.0,0.238255]
[1736901196805,0.50058818,97309.0,97308.0,0.238255]
[1736901197016,0.59396365,97309.0,97308.0,0.238255]
[1736901197429,0.60296365,97309.0,97308.0,0.238255]
[1736901197652,0.59396365,97309.0,97308.0,0.238255]
[1736901198062,0.60296365,97309.0,97308.0,0.238255]
[1736901198266,0.59296365,97309.0,97308.0,0.238255]
[1736901198675,0.90774165,97309.0,97308.0,0.239255]
[1736901198878,0.90774165,97309.0,97308.0,0.177596]
[1736901198879,0.90486165,97309.0,97308.0,0.177596]
[1736901199241,0.90486165,97309.0,97308.0,0.13649]
[1736901199455,0.91386165,97309.0,97308.0,0.13649]
[1736901199661,0.91386165,97309.0,97308.0,0.13549]
[1736901199881,0.90774165,97309.0,97308.0,0.114937]
[1736901200056,0.81748618,97309.0,97308.0,0.114937]
[1736901200295,0.82348618,97309.0,97308.0,0.114937]
[1736901200732,0.82348618,97309.0,97308.0,0.11672998]
[1736901200915,0.9277131,97309.0,97308.0,0.11672998]
[1736901201136,0.9187131,97309.0,97308.0,0.11672998]
[1736901201347,0.9125931,97309.0,97308.0,0.11672998]
[1736901201504,0.8988251,97309.0,97308.0,0.11672998]
[1736901201702,0.9078251,97309.0,97308.0,0.11672998]
[1736901201938,0.9108251,97309.0,97308.0,0.10835049]
[1736901202132,0.9018251,97309.0,97308.0,0.10835049]
[1736901202344,0.8988251,97309.0,97308.0,0.10835049]
[1736901202549,0.9078251,97309.0,97308.0,0.10835049]
[1736901202931,0.9098251,97309.0,97308.0,0.10835049]
[1736901203352,0.80559818,97309.0,97308.0,0.10835049]
[1736901203559,0.79947818,97309.0,97308.0,0.10835049]
[1736901203742,0.51046818,97309.0,97308.0,0.10835049]
[1736901203947,0.87388618,97309.0,97308.0,0.10835049]
[1736901205174,0.87388618,97309.0,97308.0,1.9e-07]
[1736901205535,0.6188151,97309.0,97308.0,1.9e-07]
[1736901205747,0.6208151,97309.0,97308.0,0.30830019]
[1736901206203,0.6208151,97309.0,97308.0,0.26719419]
[1736901206418,2.97216578,97309.0,97308.0,0.10072634]
[1736901206618,2.97216578,97309.0,97308.0,0.07010634]
[1736901206619,2.74218378,97309.0,97308.0,0.07010634]
[1736901207068,0.36157,97290.0,97289.0,9.8e-07]
[1736901207254,0.006,97277.0,97276.0,0.00179151]
[1736901207444,0.28934692,97277.0,97276.0,0.00179151]
[1736901207658,0.28934692,97277.0,97276.0,0.31019151]
[1736901207863,0.69190511,97277.0,97276.0,0.31019151]
[1736901208071,0.59148692,97277.0,97276.0,0.31019151]
[1736901208494,0.59198076,97277.0,97276.0,0.31019151]
[1736901208654,0.60098076,97277.0,97276.0,0.31019151]
[1736901211046,0.59094276,97277.0,97276.0,0.31019151]
[1736901211244,0.69516968,97277.0,97276.0,0.31019151]
[1736901211593,0.29723765,97277.0,97276.0,0.31019151]
[1736901211795,0.28035765,97277.0,97276.0,0.31019151]
[1736901212434,0.11372076,97277.0,97276.0,0.31019151]
[1736901212639,0.11372076,97277.0,97276.0,0.48949151]
[1736901213269,0.11372076,97277.0,97276.0,0.38949151]
[1736901213477,0.33677024,97277.0,97276.0,0.31019151]
[1736901213883,0.32777024,97277.0,97276.0,0.31019151]
[1736901214298,0.35277024,97277.0,97276.0,0.31019151]
[1736901214508,0.35077024,97277.0,97276.0,0.31019151]
[1736901214740,0.35877024,97277.0,97276.0,0.31019151]
[1736901215538,0.28572076,97277.0,97276.0,0.31019151]
[1736901215795,0.28572076,97277.0,97276.0,0.41019151]
[1736901215796,0.12772076,97277.0,97276.0,0.41019151]
[1736901215959,0.13572076,97277.0,97276.0,0.41019151]
[1736901216856,0.13572076,97277.0,97276.0,0.41119151]
[1736901217323,0.12772076,97277.0,97276.0,0.41119151]
[1736901217517,0.13472076,97277.0,97276.0,0.41119151]
[1736901217863,0.12772076,97277.0,97276.0,0.41119151]
[1736901218317,0.13072076,97277.0,97276.0,0.41019151]
[1736901220788,0.12772076,97277.0,97276.0,0.31019151]
[1736901221204,0.13072076,97277.0,97276.0,0.31019151]
[1736901221402,0.12772076,97277.0,97276.0,0.31019151]
[1736901221804,0.13072076,97277.0,97276.0,0.31019151]
[1736901222085,0.12772076,97277.0,97276.0,0.31019151]
[1736901222494,0.22179333,97277.0,97276.0,0.31019151]
[1736901222701,0.21879333,97277.0,97276.0,0.31019151]
[1736901223033,0.10472076,97277.0,97276.0,0.31019151]
[1736901223241,0.10472076,97277.0,97276.0,0.41019151]
[1736901223445,0.10472076,97277.0,97276.0,0.63289151]
[1736901224879,0.10972076,97277.0,97276.0,0.63289151]
[1736901225128,0.10972076,97277.0,97276.0,0.63489151]